fUST/lending_fUST_20260117
["ID","MTS","AMOUNT","RATE_DAILY","PERIOD"]
[402195647,1768587040179,-519.41228966,0.00014988,2]
[402195649,1768587040188,-500.0,0.00014988,2]
[402195651,1768587040197,-500.0,0.00014988,2]
[402195653,1768587040208,-519.41228966,0.00014988,2]
[402195656,1768587040222,-500.0,0.00014988,2]
[402195657,1768587040233,-519.41228966,0.00014988,2]
[402195659,1768587040242,-500.0,0.00014988,2]
[402195661,1768587040251,-500.0,0.00014988,2]
[402195663,1768587040261,-519.41228966,0.00014988,2]
[402195665,1768587040270,-519.41228966,0.00014988,2]
[402195667,1768587040279,-500.0,0.00014988,2]
[402195669,1768587040288,-519.41228966,0.00014988,2]
[402195671,1768587040297,-562.6594112,0.00014988,2]
[402195673,1768587040307,-500.0,0.00014988,2]
[402195675,1768587040316,-519.41228966,0.00014988,2]
[402195677,1768587040325,-500.0,0.00014988,2]
[402195678,1768587040334,-519.41228966,0.00014988,2]
[402195680,1768587040343,-500.0,0.00014988,2]
[402195682,1768587040352,-519.41228966,0.00014988,2]
[402195683,1768587040361,-500.0,0.00014988,2]
[402195684,1768587040370,-519.41228966,0.00014988,2]
[402195685,1768587040379,-500.0,0.00014988,2]
[402195686,1768587040387,-500.0,0.00014988,2]
[402195687,1768587040396,-519.41228966,0.00014988,2]
[402195688,1768587040405,-500.0,0.00014988,2]
[402195689,1768587040415,-500.0,0.00014988,2]
[402195690,1768587040424,-519.41228966,0.00014988,2]
[402195691,1768587040433,-500.0,0.00014988,2]
[402195692,1768587040441,-500.0,0.00014988,2]
[402195693,1768587040450,-519.41228966,0.00014988,2]
[402195694,1768587040459,-500.0,0.00014988,2]
[402195695,1768587040468,-519.41228966,0.00014988,2]
[402195696,1768587040477,-500.0,0.00014988,2]
[402195697,1768587040485,-519.41228966,0.00014988,2]
[402195698,1768587040494,-500.0,0.00014988,2]
[402195699,1768587040504,-500.0,0.00014988,2]
[402195700,1768587040513,-519.41228966,0.00014988,2]
[402195701,1768587040522,-500.0,0.00014988,2]
[402195702,1768587040531,-519.41228966,0.00014988,2]
[402195703,1768587040540,-519.41228966,0.00014988,2]
[402195704,1768587040549,-500.0,0.00014988,2]
[402195705,1768587040557,-519.41228966,0.00014988,2]
[402195706,1768587040566,-519.41228966,0.00014988,2]
[402195707,1768587040575,-519.41228966,0.00014988,2]
[402195708,1768587040584,-540.3790789,0.00014988,2]
[402195709,1768587040592,-519.41228966,0.00014988,2]
[402195710,1768587040601,-519.41228966,0.00014988,2]
[402195711,1768587040610,-500.0,0.00014988,2]
[402195712,1768587040619,-519.41228966,0.00014988,2]
[402195713,1768587040628,-519.41228966,0.00014988,2]
[402195714,1768587040637,-519.41228966,0.00014988,2]
[402195715,1768587040646,-519.41228966,0.00014988,2]
[402195716,1768587040655,-519.41228966,0.00014988,2]
[402195717,1768587040665,-519.41228966,0.00014988,2]
[402195718,1768587040674,-519.41228966,0.00014988,2]
[402195720,1768587040684,-519.41228966,0.00014988,2]
[402195722,1768587040693,-519.41228966,0.00014988,2]
[402195724,1768587040703,-519.41228966,0.00014988,2]
[402195726,1768587040712,-519.41228966,0.00014988,2]
[402195728,1768587040722,-519.41228966,0.00014988,2]
[402195730,1768587040731,-519.41228966,0.00014988,2]
[402195732,1768587040741,-519.41228966,0.00014988,2]
[402195734,1768587040751,-519.41228966,0.00014988,2]
[402195736,1768587040760,-500.0,0.00014988,2]
[402195738,1768587040769,-519.41228966,0.00014988,2]
[402195740,1768587040778,-500.0,0.00014988,2]
[402195742,1768587040787,-500.0,0.00014988,2]
[402195744,1768587040796,-500.0,0.00014988,2]
[402195746,1768587040806,-599.99999999,0.00014988,2]
[402195748,1768587040816,-500.0,0.00014988,2]
[402195750,1768587040825,-500.0,0.00014988,2]
[402195752,1768587040834,-500.0,0.00014988,2]
[402195754,1768587040844,-511.73915357,0.00014988,2]
[402195756,1768587040853,-511.73915357,0.00014988,2]
[402195758,1768587040863,-511.73915357,0.00014988,2]
[402195760,1768587040872,-511.73915357,0.00014988,2]
[402195762,1768587040882,-511.73915357,0.00014988,2]
[402195764,1768587040891,-511.73915357,0.00014988,2]
[402195766,1768587040901,-511.73915357,0.00014988,2]
[402195768,1768587040910,-511.73915357,0.00014988,2]
[402195770,1768587040920,-511.73915357,0.00014988,2]
[402195771,1768587040929,-511.73915357,0.00014988,2]
[402195773,1768587040938,-511.73915357,0.00014988,2]
[402195775,1768587040947,-511.73915357,0.00014988,2]
[402195777,1768587040957,-511.73915357,0.00014988,2]
[402195779,1768587040967,-511.73915357,0.00014988,2]
[402195781,1768587040976,-511.73915357,0.00014988,2]
[402195783,1768587040986,-511.73915357,0.00014988,2]
[402195785,1768587040995,-511.73915357,0.00014988,2]
[402195787,1768587041004,-511.73915357,0.00014988,2]
[402195789,1768587041013,-511.73915357,0.00014988,2]
[402195791,1768587041022,-511.73915357,0.00014988,2]
[402195793,1768587041032,-511.73915357,0.00014988,2]
[402195795,1768587041041,-511.73915356,0.00014988,2]
[402195797,1768587041051,-500.0,0.00014989,2]
[402195799,1768587041060,-151.88,0.00014989,2]
[402195801,1768587041070,-228.5037798,0.00014989,2]
[402195803,1768587041079,-500.0,0.00014989,2]
[402195805,1768587041088,-174.70000608,0.00014989,2]
[402195807,1768587041098,-270.78920899,0.00014989,2]
[402195809,1768587041108,-500.0,0.00014989,2]
[402195811,1768587041118,-91862.5007492,0.0001499,2]
[402195813,1768587041129,-165.927418,0.00015068,2]
[402195815,1768587041139,-266.92718303,0.00015126,2]
[402195817,1768587041148,-151.89,0.00015263,2]
[402195819,1768587041158,-297.11,0.000153,2]
[402195821,1768587041167,-211.49,0.000153,2]
[402195822,1768587041176,-211.49421504,0.000154,2]
[402195824,1768587041185,-244.91,0.00015401,2]
[402195826,1768587041195,-265.7,0.00015627,3]
[402195828,1768587041204,-797.12,0.00015627,3]
[402195830,1768587041217,-1000000.0,0.00015637,2]
[402195832,1768587041226,-9405.33635706,0.00015637,2]
[402195834,1768587041235,-8019.2045578,0.00015737,2]
[402195836,1768587041244,-1680.0,0.00015804,2]
[402195838,1768587041255,-2462.39057499,0.0001591,2]
[402195840,1768587041264,-387.18816033,0.0001597,2]
[402195842,1768587041273,-275.52,0.00016256,2]
[402195844,1768587041283,-503.49650469,0.00016744,2]
[402195846,1768587041295,-500.0,0.00016988,2]
[402195848,1768587041304,-1626.75,0.00016988,2]
[402195850,1768587041313,-500.0,0.00016989,2]
[402195852,1768587041323,-500.0,0.00016989,2]
[402195854,1768587041331,-500.0,0.00016989,2]
[402195856,1768587041340,-500.0,0.00016989,2]
[402195858,1768587041350,-500.0,0.00016989,2]
[402195860,1768587041359,-1626.75,0.00016989,2]
[402195862,1768587041368,-1626.75,0.00016989,2]
[402195864,1768587041378,-1626.75,0.00016989,2]
[402195866,1768587041388,-1626.75,0.00016989,2]
[402195868,1768587041397,-1626.75,0.00016989,2]
[402195870,1768587041407,-531.4,0.00016997,3]
[402195872,1768587041416,-500.0,0.00017015,2]
[402195874,1768587041425,-500.0,0.00017015,2]
[402195876,1768587041434,-500.0,0.00017015,2]
[402195878,1768587041444,-500.0,0.00017015,2]
[402195880,1768587041453,-500.0,0.00017015,2]
[402195882,1768587041463,-500.0,0.00017015,2]
[402195884,1768587041474,-500.0,0.00017015,2]
[402195886,1768587041484,-500.0,0.00017015,2]
[402195888,1768587041495,-500.0,0.00017015,2]
[402195890,1768587041504,-500.0,0.00017015,2]
[402195892,1768587041513,-500.0,0.00017015,2]
[402195894,1768587041522,-500.0,0.00017015,2]
[402195896,1768587041531,-500.0,0.00017015,2]
[402195898,1768587041540,-611.38007014,0.00017015,2]
[402195900,1768587041550,-1626.75,0.00017015,2]
[402195902,1768587041559,-1626.75,0.00017015,2]
[402195904,1768587041568,-1626.75,0.00017015,2]
[402195906,1768587041577,-1626.75,0.00017015,2]
[402195908,1768587041586,-1626.75,0.00017015,2]
[402195910,1768587041595,-1626.75,0.00017015,2]
[402195912,1768587041604,-1626.75,0.00017015,2]
[402195914,1768587041613,-1626.75,0.00017015,2]
[402195916,1768587041622,-1626.75,0.00017015,2]
[402195918,1768587041631,-1626.75,0.00017015,2]
[402195919,1768587041653,-1626.75,0.00017015,2]
[402195922,1768587041662,-1626.75,0.00017015,2]
[402195924,1768587041671,-1626.75,0.00017015,2]
[402195925,1768587041681,-1626.75,0.00017015,2]
[402195927,1768587041690,-1626.75,0.00017015,2]
[402195929,1768587041699,-1626.75,0.00017015,2]
[402195931,1768587041707,-1626.82309236,0.00017015,2]
[402195933,1768587041717,-306.14,0.00017112,2]
[402195935,1768587041727,-412.0,0.00017384,2]
[402195937,1768587041737,-495.56,0.000176,2]
[402195939,1768587041746,-432.44391933,0.0001797,2]
[402195941,1768587041756,-1041.66666667,0.0001797,2]
[402195943,1768587041765,-164.4,0.00018239,2]
[402195945,1768587041774,-180.14591819,0.00018457,2]
[402195947,1768587041784,-163.0,0.00018776,120]
[402195949,1768587041794,-203.0,0.00018776,120]
[402195951,1768587041804,-203.0,0.00018776,120]
[402195953,1768587041813,-164.4,0.00019072,2]
[402195955,1768587041823,-1268.3108,0.00019178,2]
[402195957,1768587041832,-1268.3108,0.00019178,2]
[402195959,1768587041841,-1268.3108,0.00019178,2]
[402195961,1768587041851,-168.77,0.00019178,2]
[402195963,1768587041860,-500.0,0.00019178,2]
[402195965,1768587041870,-500.0,0.00019178,2]
[402195967,1768587041879,-500.0,0.00019178,2]
[402195969,1768587041888,-500.0,0.00019178,2]
[402195971,1768587041897,-500.0,0.00019178,2]
[402195973,1768587041907,-500.0,0.00019178,2]
[402195975,1768587041917,-500.0,0.00019178,2]
[402195977,1768587041926,-500.0,0.00019178,2]
[402195979,1768587041935,-500.0,0.00019178,2]
[402195981,1768587041944,-500.0,0.00019178,2]
[402195983,1768587041953,-500.0,0.00019178,2]
[402195985,1768587041963,-500.0,0.00019178,2]
[402195987,1768587041972,-500.0,0.00019178,2]
[402195989,1768587041981,-500.0,0.00019178,2]
[402195991,1768587041990,-512.21968696,0.00019178,2]
[402195992,1768587041999,-169.38148314,0.00019178,2]
[402195994,1768587042008,-862.099664,0.00019178,2]
[402195996,1768587042017,-862.099664,0.00019178,2]
[402195998,1768587042026,-862.099664,0.00019178,2]
[402196000,1768587042035,-862.099664,0.00019178,2]
[402196002,1768587042044,-862.099664,0.00019178,2]
[402196004,1768587042053,-862.099664,0.00019178,2]
[402196006,1768587042063,-862.099664,0.00019178,2]
[402196008,1768587042072,-862.099664,0.00019178,2]
[402196010,1768587042081,-862.099664,0.00019178,2]
[402196012,1768587042090,-862.099664,0.00019178,2]
[402196015,1768587042100,-862.099664,0.00019178,2]
[402196016,1768587042109,-862.099664,0.00019178,2]
[402196018,1768587042119,-2420.72,0.000192,2]
[402196020,1768587042128,-157.71,0.000192,2]
[402196023,1768587042137,-167.89,0.000192,2]
[402196024,1768587042146,-17899.6,0.000192,2]
[402196026,1768587042155,-150.69,0.000192,2]
[402196029,1768587042165,-2917.45414431,0.00019221,2]
[402196031,1768587042174,-728.0,0.00019226,2]
[402196033,1768587042183,-728.0,0.00019243,2]
[402196035,1768587042192,-1268.3108,0.00019589,3]
[402196037,1768587042202,-713.1392,0.00019589,3]
[402196039,1768587042217,-151.0,0.000196,2]
[402196041,1768587042227,-1854.62,0.00019621,3]
[402196043,1768587042236,-163.0,0.00019715,120]
[402196045,1768587042245,-203.0,0.00019715,120]
[402196047,1768587042254,-203.0,0.00019715,120]
[402196049,1768587042263,-177.0,0.00019819,120]
[402196051,1768587042272,-199.0,0.00019819,120]
[402196053,1768587042281,-171.0,0.00019819,120]
[402196055,1768587042292,-173.0,0.00019819,120]
[402196057,1768587042301,-164.4,0.00019904,2]
[402196059,1768587042310,-285904.90255922,0.00019921,2]
[402196061,1768587042319,-862.099664,0.00019921,2]
[402196063,1768587042329,-862.099664,0.00019921,2]
[402196065,1768587042337,-862.099664,0.00019921,2]
[402196067,1768587042346,-862.099664,0.00019921,2]
[402196069,1768587042355,-477.69967833,0.0001997,2]
[402196071,1768587042364,-169.27138192,0.00019989,2]
[402196073,1768587042373,-995.30572789,0.00019989,2]
[402196075,1768587042382,-3981.22291156,0.00019989,2]
[402196077,1768587042390,-676.40844214,0.00019989,2]
[402196079,1768587042399,-2000.0,0.00019993,7]
[402196081,1768587042408,-2024.58642618,0.0002,2]
[402196083,1768587042417,-1957.856,0.00020035,2]
[402196085,1768587042426,-2150.738,0.00020035,2]
[402196087,1768587042434,-250.0,0.00020035,2]
[402196089,1768587042443,-250.0,0.00020035,2]
[402196091,1768587042452,-250.0,0.00020035,2]
[402196093,1768587042461,-151.0,0.00020035,2]
[402196095,1768587042470,-250.0,0.00020035,2]
[402196097,1768587042479,-151.0,0.00020035,2]
[402196099,1768587042488,-250.0,0.00020035,2]
[402196101,1768587042497,-162.380719,0.00020035,2]
[402196103,1768587042507,-250.0,0.00020035,2]
[402196105,1768587042516,-168.3888056,0.00020035,2]
[402196107,1768587042525,-250.0,0.00020035,2]
[402196109,1768587042535,-174.61919141,0.00020035,2]
[402196111,1768587042546,-250.0,0.00020035,2]
[402196113,1768587042555,-181.08010149,0.00020035,2]
[402196115,1768587042565,-164.148966,0.00020035,2]
[402196117,1768587042574,-222.18737856,0.00020035,2]
[402196119,1768587042584,-187.78006525,0.00020035,2]
[402196121,1768587042593,-194.72792766,0.00020035,2]
[402196123,1768587042602,-201.93286099,0.00020035,2]
[402196125,1768587042611,-209.40437684,0.00020035,2]
[402196127,1768587042620,-217.15233878,0.00020035,2]
[402196129,1768587042629,-151.0,0.00020035,2]
[402196131,1768587042638,-225.18697532,0.00020035,2]
[402196133,1768587042646,-151.0,0.00020035,2]
[402196135,1768587042655,-250.0,0.00020035,2]
[402196137,1768587042664,-233.51889341,0.00020035,2]
[402196140,1768587042673,-151.0,0.00020035,2]
[402196142,1768587042682,-250.0,0.00020035,2]
[402196144,1768587042692,-242.15909246,0.00020035,2]
[402196146,1768587042701,-151.0,0.00020035,2]
[402196148,1768587042710,-251.11897888,0.00020035,2]
[402196150,1768587042720,-151.0,0.00020035,2]
[402196152,1768587042729,-260.4103811,0.00020035,2]
[402196154,1768587042739,-151.0,0.00020035,2]
[402196156,1768587042748,-270.0455652,0.00020035,2]
[402196158,1768587042757,-151.0,0.00020035,2]
[402196160,1768587042766,-250.0,0.00020035,2]
[402196162,1768587042776,-280.03725112,0.00020035,2]
[402196164,1768587042785,-151.0,0.00020035,2]
[402196166,1768587042795,-250.0,0.00020035,2]
[402196168,1768587042805,-290.39862941,0.00020035,2]
[402196171,1768587042815,-151.0,0.00020035,2]
[402196175,1768587042824,-301.1433787,0.00020035,2]
[402196179,1768587042833,-445.202766,0.00020035,2]
[402196181,1768587042843,-151.0,0.00020035,2]
[402196183,1768587042852,-151.0,0.00020035,2]
[402196185,1768587042861,-151.0,0.00020035,2]
[402196187,1768587042870,-151.0,0.00020035,2]
[402196189,1768587042879,-151.0,0.00020035,2]
[402196191,1768587042888,-151.0,0.00020035,2]
[402196193,1768587042897,-151.0,0.00020035,2]
[402196195,1768587042907,-151.0,0.00020035,2]
[402196197,1768587042916,-162.380719,0.00020035,2]
[402196199,1768587042925,-2030.296672,0.0002009,2]
[402196201,1768587042935,-2105.41764886,0.00020145,2]
[402196202,1768587042944,-728.0,0.00020186,2]
[402196204,1768587042954,-2183.31810187,0.000202,2]
[402196207,1768587042963,-868.5027432,0.00020255,2]
[402196209,1768587042972,-475.0,0.00020361,2]
[402196211,1768587042982,-475.0,0.00020361,2]
[402196213,1768587042991,-475.0,0.00020361,2]
[402196215,1768587042999,-475.0,0.00020361,2]
[402196216,1768587043009,-2420.72,0.000204,2]
[402196218,1768587043018,-157.71,0.000204,2]
[402196220,1768587043028,-17899.6,0.000204,2]
[402196222,1768587043037,-150.69,0.000204,2]
[402196224,1768587043047,-862.099664,0.000204,2]
[402196226,1768587043057,-862.099664,0.000204,2]
[402196228,1768587043066,-862.099664,0.000204,2]
[402196230,1768587043075,-862.099667,0.000204,2]
[402196232,1768587043084,-2000.0,0.00020493,7]
[402196234,1768587043094,-2230.315306,0.00020583,2]
[402196236,1768587043103,-461.67526834,0.00020583,2]
[402196238,1768587043113,-310.4976631,0.00020658,3]
[402196240,1768587043122,-411.440738,0.00020658,7]
[402196242,1768587043131,-418.996642,0.00020658,7]
[402196244,1768587043141,-163.0,0.00020701,120]
[402196246,1768587043150,-1123.373809,0.00020701,7]
[402196248,1768587043161,-366.515581,0.00020736,7]
[402196250,1768587043171,-164.4,0.00020737,2]
[402196252,1768587043180,-480.0,0.00020764,10]
[402196255,1768587043192,-177.0,0.0002081,120]
[402196257,1768587043202,-199.0,0.0002081,120]
[402196259,1768587043212,-171.0,0.0002081,120]
[402196261,1768587043233,-173.0,0.0002081,120]
[402196293,1768587043511,-728.0,0.00020855,2]
[402196295,1768587043523,-80356.46750675,0.000209,2]
[402196297,1768587043532,-541.126328,0.000209,7]
[402196299,1768587043541,-893.201329,0.000209,7]
[402196301,1768587043551,-2000.0,0.00020994,7]
[402196303,1768587043560,-3000.0,0.00021,2]
[402196305,1768587043570,-349.454298,0.00021,7]
[402196307,1768587043580,-1854.56,0.00021,3]
[402196309,1768587043589,-475.0,0.00021002,2]
[402196312,1768587043599,-3000.0,0.0002101,2]
[402196314,1768587043609,-190.929834,0.0002101,7]
[402196316,1768587043618,-3000.0,0.0002102,2]
[402196318,1768587043628,-594.947035,0.0002102,7]
[402196320,1768587043637,-3252.96869899,0.0002102,2]
[402196322,1768587043647,-3000.0,0.0002103,2]
[402196324,1768587043656,-3000.0,0.0002104,2]
[402196326,1768587043666,-3000.0,0.0002105,2]
[402196328,1768587043675,-3000.0,0.0002106,2]
[402196330,1768587043685,-3000.0,0.0002107,2]
[402196332,1768587043694,-305.905241,0.0002107,7]
[402196334,1768587043704,-3000.0,0.0002108,2]
[402196336,1768587043714,-183.340334,0.0002108,7]
[402196338,1768587043724,-524.28134,0.0002108,7]
[402196340,1768587043734,-3000.0,0.0002109,2]
[402196342,1768587043743,-471.0,0.00021094,10]
[402196344,1768587043753,-1366.0,0.00021094,10]
[402196346,1768587043762,-499.0,0.00021098,120]
[402196348,1768587043771,-541.028746,0.00021098,7]
[402196350,1768587043781,-709.217526,0.00021098,7]
[402196352,1768587043790,-3000.0,0.000211,2]
[402196354,1768587043799,-3000.0,0.0002111,2]
[402196356,1768587043809,-3000.0,0.0002112,2]
[402196358,1768587043818,-3000.0,0.0002113,2]
[402196360,1768587043828,-2312.83697232,0.00021131,2]
[402196362,1768587043838,-478.75725327,0.00021131,2]
[402196364,1768587043847,-3000.0,0.0002114,2]
[402196366,1768587043856,-866.028349,0.0002114,7]
[402196368,1768587043866,-3000.0,0.0002115,2]
[402196370,1768587043875,-3000.0,0.0002116,2]
[402196372,1768587043884,-3000.0,0.0002117,2]
[402196374,1768587043893,-3000.0,0.0002118,2]
[402196376,1768587043903,-3000.0,0.0002119,2]
[402196378,1768587043914,-3000.0,0.000212,2]
[402196380,1768587043924,-243.0,0.00021209,120]
[402196382,1768587043933,-162.0,0.00021209,120]
[402196384,1768587043942,-3000.0,0.0002121,2]
[402196386,1768587043952,-3000.0,0.0002122,2]
[402196388,1768587043961,-3000.0,0.0002123,2]
[402196390,1768587043971,-3000.0,0.0002124,2]
[402196393,1768587043986,-3000.0,0.0002125,2]
[402196395,1768587043997,-3000.0,0.0002126,2]
[402196397,1768587044007,-3000.0,0.0002127,2]
[402196399,1768587044017,-3000.0,0.0002128,2]
[402196401,1768587044029,-3000.0,0.0002129,2]
[402196404,1768587044039,-3000.0,0.000213,2]
[402196405,1768587044049,-158.247272,0.000213,7]
[402196406,1768587044059,-3000.0,0.0002131,2]
[402196407,1768587044069,-165.233083,0.0002131,7]
[402196408,1768587044081,-3000.0,0.0002132,2]
[402196409,1768587044091,-656.0,0.00021322,120]
[402196410,1768587044101,-394.0,0.00021322,120]
[402196411,1768587044111,-236.0,0.00021322,120]
[402196412,1768587044120,-237.370909,0.00021322,7]
[402196413,1768587044130,-359.420902,0.0002133,7]
[402196414,1768587044140,-1104.74529235,0.0002133,2]
[402196415,1768587044173,-1273.6685903,0.0002133,2]
[402196450,1768587044923,-428.52274918,0.0002133,2]
[402196592,1768587046448,-193.06336817,0.0002133,2]
[402196593,1768587046458,-203.65849,0.0002134,7]
[402196594,1768587046468,-558.81430395,0.0002134,2]
[402196595,1768587046503,-1528.85037598,0.0002134,2]
[402196596,1768587046517,-912.33532007,0.0002134,2]
[402196597,1768587046526,-212.628986,0.0002135,7]
[402196598,1768587046536,-3000.0,0.0002135,2]
[402196599,1768587046545,-3000.0,0.0002136,2]
[402196600,1768587046555,-3000.0,0.0002137,2]
[402196601,1768587046565,-179.0,0.00021375,120]
[402196602,1768587046574,-172.0,0.00021375,120]
[402196603,1768587046660,-163.0,0.00021375,120]
[402196604,1768587046670,-542.1781165,0.00021379,20]
[402196605,1768587046684,-3000.0,0.0002138,2]
[402196606,1768587046693,-2618.85757738,0.0002139,2]
[402196607,1768587046705,-381.14242262,0.0002139,2]
[402196608,1768587046714,-1558.85828013,0.000214,2]
[402197030,1768588238235,-6011.07224762,0.00013685,2]
[402197032,1768588238245,-615.0,0.00013685,2]
[402197034,1768588238255,-1200.0,0.00013698,2]
[402197036,1768588238265,-78875.7224853,0.00013699,2]
[402197038,1768588238275,-238.42826453,0.00013785,2]
[402197039,1768588238284,-507.8031815,0.00013871,2]
[402197041,1768588238294,-495.56,0.000142,2]
[402197043,1768588238303,-8019.2045578,0.00014219,2]
[402197045,1768588238313,-500.0,0.00014967,2]
[402197046,1768588238322,-1558.97,0.00014967,2]
[402197048,1768588238332,-500.0,0.00014989,2]
[402197050,1768588238342,-500.0,0.00014989,2]
[402197051,1768588238351,-500.0,0.00014989,2]
[402197052,1768588238360,-500.0,0.00014989,2]
[402197054,1768588238370,-500.0,0.00014989,2]
[402197056,1768588238380,-412.04,0.00014989,2]
[402197058,1768588238389,-1558.97,0.00014989,2]
[402197060,1768588238398,-1558.97,0.00014989,2]
[402197062,1768588238407,-1558.97,0.00014989,2]
[402197063,1768588238416,-1558.97,0.00014989,2]
[402197065,1768588238426,-30631.67691038,0.00014989,2]
[402197068,1768588238435,-892.0,0.00015067,2]
[402197070,1768588238444,-6011.07224758,0.00015287,2]
[402197072,1768588238452,-349.62316448,0.000154,2]
[402197074,1768588238462,-174.81158224,0.000154,2]
[402197076,1768588238472,-1881.06727142,0.00015534,2]
[402197078,1768588238482,-531.4,0.00015626,3]
[402197080,1768588238491,-500.0,0.00015634,2]
[402197082,1768588238500,-165.55006213,0.00015634,2]
[402197084,1768588238510,-500.0,0.00015634,2]
[402197086,1768588238519,-500.0,0.00015634,2]
[402197088,1768588238528,-500.0,0.00015634,2]
[402197090,1768588238538,-500.0,0.00015634,2]
[402197092,1768588238547,-470.12787199,0.00015634,2]
[402197094,1768588238561,-500.0,0.00015634,2]
[402197096,1768588238572,-500.0,0.00015634,2]
[402197098,1768588238581,-500.0,0.00015634,2]
[402197100,1768588238590,-500.0,0.00015634,2]
[402197102,1768588238602,-500.0,0.00015634,2]
[402197104,1768588238611,-500.0,0.00015634,2]
[402197106,1768588238620,-500.0,0.00015634,2]
[402197108,1768588238631,-500.0,0.00015634,2]
[402197110,1768588238640,-500.0,0.00015634,2]
[402197112,1768588238649,-500.0,0.00015634,2]
[402197114,1768588238658,-500.0,0.00015634,2]
[402197116,1768588238667,-500.0,0.00015634,2]
[402197118,1768588238676,-500.0,0.00015634,2]
[402197120,1768588238685,-500.0,0.00015634,2]
[402197122,1768588238694,-500.0,0.00015634,2]
[402197123,1768588238704,-500.0,0.00015634,2]
[402197124,1768588238713,-500.0,0.00015634,2]
[402197125,1768588238723,-500.0,0.00015634,2]
[402197126,1768588238732,-398.18247504,0.00015634,2]
[402197127,1768588238741,-500.0,0.00015634,2]
[402197128,1768588238751,-500.0,0.00015634,2]
[402197129,1768588238760,-500.0,0.00015634,2]
[402197130,1768588238770,-269.72920735,0.00015634,2]
[402197131,1768588238780,-500.0,0.00015634,2]
[402197132,1768588238790,-500.0,0.00015634,2]
[402197133,1768588238799,-500.0,0.00015634,2]
[402197134,1768588238809,-500.0,0.00015634,2]
[402197135,1768588238818,-500.0,0.00015634,2]
[402197136,1768588238827,-500.0,0.00015634,2]
[402197137,1768588238837,-500.0,0.00015634,2]
[402197138,1768588238846,-500.0,0.00015634,2]
[402197139,1768588238855,-500.0,0.00015634,2]
[402197140,1768588238864,-478.5133475,0.00015634,2]
[402197141,1768588238874,-500.0,0.00015634,2]
[402197142,1768588238885,-500.0,0.00015634,2]
[402197143,1768588238895,-500.0,0.00015634,2]
[402197144,1768588238904,-500.0,0.00015634,2]
[402197145,1768588238914,-500.0,0.00015634,2]
[402197146,1768588238923,-500.0,0.00015634,2]
[402197147,1768588238934,-500.0,0.00015634,2]
[402197148,1768588238944,-500.0,0.00015634,2]
[402197149,1768588238954,-278.97246933,0.00015634,2]
[402197150,1768588238963,-500.0,0.00015634,2]
[402197151,1768588238973,-500.0,0.00015634,2]
[402197152,1768588238983,-500.0,0.00015634,2]
[402197153,1768588238993,-619.33725302,0.00015634,2]
[402197154,1768588239003,-500.0,0.00015634,2]
[402197155,1768588239013,-500.0,0.00015634,2]
[402197156,1768588239023,-500.0,0.00015634,2]
[402197157,1768588239032,-500.0,0.00015634,2]
[402197158,1768588239042,-500.0,0.00015634,2]
[402197159,1768588239051,-500.0,0.00015634,2]
[402197160,1768588239061,-500.0,0.00015634,2]
[402197161,1768588239071,-500.0,0.00015634,2]
[402197162,1768588239081,-500.0,0.00015634,2]
[402197163,1768588239092,-500.0,0.00015634,2]
[402197164,1768588239102,-500.0,0.00015634,2]